bitfinex-derivatives/quotes_ETHF0:USTF0_20241230
["timestamp","ask_amount","ask_price","bid_price","bid_amount"]
[1735521369954,0.87106,3392.4,3392.1,3.50318]
[1735521370149,0.5757,3392.4,3392.1,3.2078]
[1735521370349,0.87106,3392.4,3392.1,3.50318]
[1735521370846,0.5757,3392.4,3392.2,0.29537]
[1735521371151,0.87106,3392.4,3392.1,3.50318]
[1735521371548,0.5757,3392.4,3392.1,3.2078]
[1735521371857,0.29537,3392.3,3392.1,3.2078]
[1735521372447,0.2954,3392.0,3391.7,3.50321]
[1735521372745,3.2078,3393.1,3391.9,0.73851]
[1735521373054,0.29531,3392.9,3392.6,3.2078]
[1735521373353,0.29531,3393.0,3392.7,41.09533]
[1735521373553,0.5766,3393.3,3392.7,40.8]
[1735521373752,0.29532,3392.9,3392.6,3.2078]
[1735521374056,0.5766,3393.3,3392.6,3.2078]
[1735521374057,0.5766,3393.3,3393.0,0.2953]
[1735521374358,1.7769,3393.9,3393.0,0.2953]
[1735521374359,3.2078,3394.0,3393.0,8.2078]
[1735521374548,0.5319,3394.3,3393.6,3.2078]
[1735521374747,0.5319,3394.3,3394.0,3.2078]
[1735521375151,0.8271,3394.3,3394.0,3.2078]
[1735521375350,0.5319,3394.3,3394.0,3.2078]
[1735521375548,0.82709,3394.3,3394.0,3.2078]
[1735521376056,0.2952,3394.2,3394.0,3.2078]
[1735521376656,0.29521,3394.1,3394.0,3.2078]
[1735521378352,0.29519,3394.2,3394.0,3.2078]
[1735521378658,0.82709,3394.3,3394.0,3.2078]
[1735521378860,0.5319,3394.3,3394.0,3.2078]
[1735521379052,0.2952,3394.1,3394.0,3.2078]
[1735521379655,0.5319,3394.3,3393.4,3.2078]
[1735521379855,0.5319,3394.3,3393.5,0.29525]
[1735521380054,0.5319,3394.3,3393.4,3.2078]
[1735521380354,0.29525,3393.5,3393.4,3.2078]
[1735521380557,1.233,3393.9,3393.0,0.5625]
[1735521380756,0.29527,3393.3,3393.0,0.5625]
[1735521381058,0.571,3393.4,3393.0,0.5625]
[1735521381255,0.2953,3393.0,3392.8,4.59119983]
[1735521381455,0.2953,3392.9,3392.8,4.59119983]
[1735521381758,0.29529,3393.1,3392.7,0.86712]
[1735521382062,0.29531,3392.9,3392.6,0.5308]
[1735521382362,0.2953,3392.9,3392.6,0.82613]
[1735521383053,0.571,3393.4,3392.6,0.82613]
[1735521383054,0.571,3393.4,3392.6,0.5308]
[1735521383259,0.571,3393.4,3393.3,3.2078]
[1735521383457,0.5664,3394.1,3393.3,3.2078]
[1735521383657,0.5664,3394.1,3393.8,3.2078]
[1735521383853,1.7862,3394.4,3393.8,44.0078]
[1735521383854,0.29519,3394.3,3393.8,44.0078]
[1735521384065,0.29519,3394.3,3394.0,0.2952]
[1735521384364,0.29519,3394.3,3393.8,44.0078]
[1735521384365,0.84838,3394.4,3394.1,0.2952]
[1735521384653,0.29518,3394.3,3394.0,0.29521]
[1735521384856,0.84838,3394.4,3394.0,0.29521]
[1735521385058,0.29518,3394.4,3394.0,0.29521]
[1735521385865,0.5664,3394.6,3394.0,0.29521]
[1735521385866,0.29517,3394.5,3394.0,0.29521]
[1735521386159,0.5664,3394.6,3394.0,0.29521]
[1735521386349,0.29517,3394.4,3394.0,0.29521]
[1735521387358,0.5664,3394.6,3393.9,0.29521]
[1735521387662,0.29518,3394.4,3393.9,0.29521]
[1735521388065,0.29518,3394.4,3394.0,0.29521]
[1735521388461,0.29517,3394.5,3394.1,0.2952]
[1735521388656,0.29517,3394.5,3394.0,0.2952]
[1735521388954,3.2078,3394.9,3394.3,3.2078]
[1735521389157,0.5501,3395.2,3394.7,3.2078]
[1735521389561,3.2078,3395.4,3395.0,0.29511]
[1735521389865,3.2078,3395.4,3394.7,3.2078]
[1735521390068,3.2078,3395.4,3394.9,0.29513]
[1735521390365,0.2951,3395.3,3394.9,0.29513]
[1735521390561,3.50289,3395.4,3394.9,0.29513]
[1735521391061,3.2078,3395.4,3394.7,3.2078]
[1735521391464,3.50289,3395.4,3395.0,0.29512]
[1735521392160,3.2078,3395.4,3394.7,3.2078]
[1735521392662,3.2078,3395.4,3394.8,0.29513]
[1735521392861,0.29511,3395.2,3394.8,0.29513]
[1735521393760,0.29504,3395.9,3395.5,0.29507]
[1735521393961,2.84024219,3396.0,3395.8,3.2078]
[1735521394159,3.45828133,3396.2,3396.1,0.29503]
[1735521394558,3.45828133,3396.2,3396.1,5.29503]
[1735521394864,3.45828133,3396.2,3396.1,0.29503]
[1735521395264,0.29501,3396.4,3396.0,0.5319]
[1735521395465,0.29498,3396.6,3396.3,3.2078]
[1735521395764,0.295,3396.5,3396.3,3.2078]
[1735521395965,0.29499,3396.6,3396.3,3.2078]
[1735521396169,2.84024219,3397.1,3396.3,3.50281]
[1735521396660,0.29498,3396.7,3396.3,3.2078]
[1735521396860,2.84024219,3397.1,3396.3,3.2078]
[1735521397062,0.5701,3397.4,3396.7,3.2078]
[1735521397258,0.29495,3397.1,3396.7,3.2078]
[1735521397460,0.29493,3397.2,3396.7,3.2078]
[1735521397661,3.2078,3397.7,3396.7,3.2078]
[1735521397858,0.29488,3397.8,3397.3,3.2078]
[1735521398064,0.29488,3397.8,3396.8,0.57]
[1735521398065,3.45828133,3397.9,3397.7,3.2078]
[1735521398368,0.29488,3397.8,3397.7,3.2078]
[1735521398567,0.5707,3398.1,3397.7,3.2078]
[1735521398967,0.29487,3397.9,3397.7,3.2078]
[1735521399170,0.5707,3398.1,3397.7,3.2078]
[1735521399468,0.29488,3397.8,3397.7,3.2078]
[1735521399767,3.45828133,3398.7,3397.7,3.2078]
[1735521399962,2.84024219,3399.0,3398.2,3.2078]
[1735521400374,0.29478,3398.9,3398.2,3.2078]
[1735521400571,0.29482,3398.5,3398.2,3.2078]
[1735521401774,3.2078,3399.1,3398.2,3.2078]
[1735521401970,0.29482,3398.5,3398.2,3.2078]
[1735521402169,0.29483,3398.3,3398.2,3.2078]
[1735521402467,0.29482,3398.5,3398.2,3.2078]
[1735521402668,6.04804219,3399.1,3398.2,3.2078]
[1735521402972,0.29483,3398.3,3398.2,3.2078]
[1735521403374,0.29482,3398.5,3398.2,3.2078]
[1735521404468,6.04804219,3399.1,3398.2,3.2078]
[1735521404668,0.29483,3398.4,3398.2,3.2078]
[1735521405473,0.29483,3398.3,3398.2,3.2078]
[1735521405673,3.2078,3398.6,3397.8,3.2078]
[1735521405674,0.29486,3398.1,3397.8,3.2078]
[1735521405974,3.2078,3398.6,3397.8,3.2078]
[1735521405975,0.29487,3397.9,3397.8,3.2078]
[1735521407878,0.573,3398.5,3397.8,3.2078]
[1735521408377,0.29483,3398.4,3397.8,3.50268]
[1735521408574,0.573,3398.5,3397.8,3.2078]
[1735521408878,0.29485,3398.2,3397.8,3.2078]
[1735521409378,0.573,3398.5,3397.8,3.2078]
[1735521409580,0.29484,3398.2,3397.8,3.2078]
[1735521409874,0.573,3398.5,3397.8,3.2078]
[1735521410072,3.2078,3399.0,3398.3,3.2078]
[1735521410273,0.29478,3399.0,3398.5,0.29482]
[1735521410473,0.29477,3399.2,3398.4,0.29483]
[1735521410684,0.29475,3399.3,3398.9,3.2078]
[1735521411074,0.5268,3399.5,3399.1,0.29476]
[1735521411276,0.29474,3399.4,3399.3,3.2078]
[1735521413171,3.7346,3399.5,3398.7,3.2078]
[1735521413378,3.2078,3399.0,3398.2,3.2078]
[1735521413784,0.29483,3398.4,3398.2,3.2078]
[1735521414076,3.2078,3399.0,3398.2,3.2078]
[1735521414269,0.29483,3398.3,3397.8,3.2078]
[1735521414474,0.29486,3398.1,3397.8,3.2078]
[1735521414671,0.29487,3398.0,3397.8,3.2078]
[1735521414878,0.29487,3398.0,3397.8,8.2078]
[1735521415083,0.29483,3398.4,3397.9,0.29486]
[1735521415379,0.29485,3398.2,3397.8,3.50267]
[1735521415578,0.29486,3398.0,3397.8,3.2078]
[1735521415775,0.29486,3398.1,3397.8,3.2078]
[1735521415975,0.5737,3398.7,3397.8,3.2078]
[1735521416182,0.29486,3398.1,3397.9,3.2078]
[1735521416484,0.29485,3398.1,3397.9,3.2078]
[1735521416979,0.5737,3398.7,3397.9,8.2078]
[1735521417181,0.29476,3399.2,3398.5,0.29481]
[1735521417485,0.29476,3399.1,3399.0,3.2078]
[1735521417678,0.29479,3398.8,3398.5,3.2078]
[1735521418382,1.0698,3399.5,3397.9,3.2078]
[1735521418383,0.5325,3398.7,3397.9,3.2078]
[1735521418583,0.5325,3398.7,3398.1,0.29485]
[1735521418782,0.5325,3398.7,3398.2,3.2078]
[1735521419287,0.29481,3398.6,3398.2,3.2078]
[1735521419584,0.5325,3398.7,3398.3,0.29483]
[1735521419881,0.5325,3398.7,3398.6,3.2078]
[1735521420085,0.29482,3398.5,3398.2,3.2078]
[1735521420281,0.5325,3398.7,3398.2,3.2078]
[1735521420684,0.29482,3398.5,3398.2,3.2078]
[1735521420977,0.5325,3398.7,3398.2,3.2078]
[1735521421181,0.29487,3398.0,3397.8,3.2078]
[1735521421379,1.26951,3398.7,3397.8,3.2078]
[1735521421380,0.5325,3398.7,3397.8,3.2078]
[1735521421579,0.5325,3398.7,3398.3,3.2078]
[1735521422089,0.8273,3398.7,3398.3,3.2078]
[1735521422287,0.5325,3398.7,3398.3,3.2078]
[1735521422480,0.29482,3398.6,3398.3,3.2078]
[1735521422680,0.29482,3398.5,3398.3,3.2078]
[1735521422888,0.5325,3398.7,3398.3,3.2078]
[1735521422889,0.29481,3398.6,3398.3,3.2078]
[1735521423092,8.01591219,3399.4,3398.3,3.2078]
[1735521423390,0.2948,3398.7,3398.3,3.2078]
[1735521423779,3.7624,3399.8,3398.8,0.29479]
[1735521424085,3.7624,3399.8,3399.0,3.50257]
[1735521424086,0.29473,3399.5,3399.0,3.50257]
[1735521424286,0.29472,3399.6,3399.0,3.2078]
[1735521424582,0.29472,3399.6,3398.8,0.5527]
[1735521424583,0.5786,3399.7,3399.4,3.2078]
[1735521424782,0.5705,3400.1,3399.4,3.2078]
[1735521424980,0.29468,3400.1,3399.5,2.84024219]
[1735521425180,3.2078,3400.3,3399.7,0.29471]
[1735521425377,3.2078,3400.3,3399.8,3.2078]
[1735521425582,0.29468,3400.2,3399.8,3.2078]
[1735521425786,3.2078,3400.3,3399.8,3.2078]
[1735521426179,0.29468,3400.1,3399.8,3.2078]
[1735521426390,0.2947,3399.9,3399.8,3.2078]
[1735521429387,0.29468,3400.2,3399.8,3.2078]
[1735521429582,6.3244052,3400.8,3399.8,3.2078]
[1735521429785,6.32440985,3400.8,3399.8,3.7528]
[1735521430090,0.29468,3400.1,3399.8,3.7528]
[1735521430985,0.29465,3400.5,3400.0,0.29468]
[1735521431181,0.29466,3400.4,3400.2,3.2078]
[1735521431404,0.29466,3400.3,3400.2,3.2078]
[1735521431587,1.0312,3400.7,3399.8,4.8156]
[1735521431789,3.2078,3400.8,3399.8,4.8156]
[1735521432091,0.29467,3400.3,3399.8,5.1103]
[1735521432291,0.29467,3400.3,3399.9,0.2947]
[1735521432880,0.29467,3400.3,3399.8,4.8156]
[1735521432881,0.29466,3400.3,3400.0,0.29469]
[1735521433083,3.2078,3401.3,3400.2,3.2078]
[1735521433285,0.73641,3401.5,3400.8,3.2078]
[1735521433488,0.29461,3400.9,3400.8,3.2078]
[1735521435294,0.29461,3401.0,3400.8,3.2078]
[1735521435484,0.29461,3400.9,3400.8,3.2078]
[1735521435685,0.29461,3401.0,3400.8,3.2078]
[1735521435893,3.2078,3401.3,3400.8,3.2078]
[1735521436091,0.29461,3400.9,3400.8,3.2078]
[1735521436986,0.27631927,3401.5,3400.8,3.2078]
[1735521437192,1.85848,3401.6,3400.8,3.2078]
[1735521437393,0.29461,3400.9,3400.8,3.2078]
[1735521437694,0.2946,3401.0,3400.8,3.2078]
[1735521437893,1.85848,3401.6,3400.8,3.2078]
[1735521438083,0.29459,3401.1,3400.8,3.2078]
[1735521439291,1.1221,3401.6,3400.8,3.2078]
[1735521439485,1.1221,3401.6,3401.1,3.2078]
[1735521439684,0.29458,3401.3,3401.1,3.2078]
[1735521439990,1.1221,3401.6,3401.1,3.2078]
[1735521440498,0.29458,3401.3,3401.1,3.2078]
[1735521440690,1.1221,3401.6,3401.1,3.2078]
[1735521440895,0.29458,3401.3,3401.1,3.2078]
[1735521441092,1.1221,3401.6,3401.1,3.2078]
[1735521441293,0.29458,3401.2,3401.1,3.2078]
[1735521444991,0.29458,3401.2,3400.5,0.83624]
[1735521444992,0.29464,3400.6,3400.5,3.7494]
[1735521445393,3.2078,3400.9,3400.1,3.2078]
[1735521445593,0.564,3400.8,3400.1,3.2078]
[1735521445801,0.29467,3400.2,3400.1,3.2078]
[1735521446191,0.29471,3399.8,3399.7,0.5965]
[1735521446796,1.1296,3400.8,3399.7,5.5965]
[1735521446993,0.29462,3400.8,3400.5,0.29464]
[1735521447202,0.2946,3401.1,3400.7,3.2078]
[1735521447503,0.29459,3401.2,3400.9,0.29461]
[1735521447700,0.29459,3401.2,3400.8,1.1526]
[1735521447901,0.29459,3401.1,3400.8,1.1526]
[1735521448103,2.27918453,3401.6,3400.9,0.29461]
[1735521448297,2.27918453,3401.6,3400.8,1.1526]
[1735521448802,0.7364,3401.5,3400.7,3.2078]
[1735521449099,0.29462,3400.8,3400.7,3.2078]
[1735521449301,0.5482,3401.4,3400.7,3.2078]
[1735521449496,0.29461,3401.0,3400.7,3.2078]
[1735521449804,0.5482,3401.4,3400.7,3.2078]
[1735521450601,0.29462,3400.9,3400.7,3.2078]
[1735521451007,0.29462,3400.8,3400.7,3.2078]
[1735521451500,3.2078,3401.3,3400.7,3.2078]
[1735521451699,0.29461,3401.0,3400.7,3.2078]
[1735521452405,0.29461,3401.0,3400.7,3.50243]
[1735521452601,0.73638,3401.6,3400.7,3.2078]
[1735521452899,0.29462,3400.8,3400.7,3.2078]
[1735521454105,3.2078,3401.3,3400.7,3.2078]
[1735521454299,4.3316,3401.7,3400.8,0.29462]
[1735521454503,0.29462,3400.8,3400.7,3.2078]
[1735521454702,0.29461,3400.9,3400.7,3.2078]
[1735521455207,4.3316,3401.7,3400.7,3.2078]
[1735521455403,0.29462,3400.8,3400.7,3.2078]
[1735521457000,3.2078,3401.3,3400.7,3.2078]
[1735521457205,0.2946,3401.0,3400.7,3.50243]
[1735521457405,0.29462,3400.8,3400.7,3.2078]
[1735521457901,0.2946,3401.1,3400.8,0.29462]
[1735521458811,0.2946,3401.1,3400.8,0.5748]
[1735521459015,3.2078,3401.3,3400.7,3.2078]
[1735521459307,0.29462,3400.8,3400.7,3.2078]
[1735521461204,0.29466,3400.3,3400.2,3.2078]
[1735521462098,0.29471,3399.7,3399.6,3.2078]
[1735521462604,6.70053153,3400.7,3399.6,3.2078]
[1735521462805,0.29471,3399.8,3399.6,3.2078]
[1735521463310,0.73664,3400.4,3399.6,3.2078]
[1735521463621,0.29471,3399.7,3399.6,3.2078]
[1735521464203,4.3346,3400.7,3399.6,3.2078]
[1735521464404,0.29468,3400.1,3400.0,3.2078]
[1735521464805,0.29885241,3400.1,3400.0,3.2078]
[1735521465406,0.00417241,3400.1,3400.0,3.2078]
[1735521465607,0.00417241,3400.1,3400.0,3.50249]
[1735521466004,0.00417241,3400.1,3400.0,4.62479]
[1735521467606,0.29465,3400.5,3400.2,0.29467]
[1735521468113,3.2078,3400.7,3400.2,2.36593153]
[1735521468304,2.27918453,3401.5,3400.2,2.36593153]
[1735521468305,2.27918453,3401.4,3400.6,5.57373153]
[1735521468613,0.29463,3400.7,3400.6,3.2078]
[1735521471410,0.5409,3400.9,3400.3,4.59119983]
[1735521471613,0.29465,3400.4,3400.3,4.59119983]
[1735521471819,0.29465,3400.4,3400.3,0.33749983]
[1735521472212,3.60693153,3400.5,3399.8,3.2078]
[1735521472413,3.2078,3400.2,3399.7,6.88679975]
[1735521472621,3.50251,3399.8,3399.7,6.88679975]
[1735521473119,0.29465,3400.5,3399.8,0.29471]
[1735521473414,0.29467,3400.2,3400.1,3.2078]
[1735521473818,2.27918453,3400.3,3400.1,3.2078]
[1735521474205,2.57385453,3400.3,3400.1,3.2078]
[1735521474813,0.29467,3400.3,3400.1,3.2078]
[1735521475308,2.27918453,3400.6,3400.1,3.2078]
[1735521475513,2.27918453,3400.6,3400.4,0.29465]
[1735521475722,2.27918453,3400.6,3400.5,3.50245]
[1735521476615,2.27918453,3400.6,3400.5,44.30245]
[1735521476616,1.38108453,3400.6,3400.5,44.30245]
[1735521476820,3.11145688,3400.9,3400.8,0.29462]
[1735521477021,2.31350338,3401.3,3400.9,0.29462]
[1735521477213,2.31350338,3401.3,3401.2,3.50239]
[1735521478717,0.88123,3402.0,3401.3,0.29458]
[1735521479024,0.88123,3402.0,3401.9,3.2078]
[1735521479616,0.29456,3401.6,3401.5,3.2078]
[1735521479815,0.29458,3401.5,3401.2,11.87729304]
[1735521480014,0.29454,3401.9,3401.2,11.87729304]
[1735521480221,3.7945,3402.0,3401.2,11.87729304]
[1735521480420,3.2078,3401.6,3401.1,6.88679975]
[1735521480621,0.2946,3401.2,3401.1,6.88679975]
[1735521480924,0.29457,3401.6,3401.2,0.2946]
[1735521481220,0.29457,3401.6,3401.4,3.2078]
[1735521481426,0.29456,3401.7,3401.4,3.2078]
[1735521482221,0.29456,3401.6,3401.4,3.2078]
[1735521482617,0.29455,3401.8,3401.4,3.2078]
[1735521482925,0.01074007,3402.3,3401.4,3.2078]
[1735521483125,0.29452,3402.2,3401.8,3.2078]
[1735521483336,0.01074007,3402.3,3401.8,3.2078]
[1735521483520,0.01074007,3402.3,3402.2,3.50231]
[1735521484021,0.01074007,3402.3,3402.2,4.08461]
[1735521484219,5.75899488,3402.8,3402.2,8.7901]
[1735521484421,5.75899488,3402.8,3402.7,3.50227]
[1735521484625,5.75899488,3402.8,3402.7,46.66820153]
[1735521485025,0.29441,3403.4,3402.7,51.37373153]
[1735521485231,0.9236085,3403.7,3403.3,5.57373153]
[1735521485426,0.9236085,3403.7,3403.6,2.66032153]
[1735521485624,0.9236085,3403.7,3403.6,2.36593153]
[1735521486326,0.9236085,3403.7,3403.4,1.13]
[1735521486527,0.9236085,3403.7,3403.6,0.29439]
[1735521486923,0.9236085,3403.7,3403.6,5.29439]
[1735521487128,0.9236085,3403.7,3403.6,46.09439]
[1735521487322,0.9236085,3403.7,3403.6,41.09439]
[1735521487824,0.3417085,3403.7,3403.6,46.09439]
[1735521488531,0.3417085,3403.7,3403.6,41.09439]
[1735521488728,0.3417085,3403.7,3403.4,1.4244]
[1735521489028,0.3417085,3403.7,3403.6,0.29439]
[1735521489235,0.3417085,3403.7,3403.6,41.09439]
[1735521489432,0.3417085,3403.7,3403.6,46.09439]
[1735521490038,0.3417085,3403.7,3403.6,0.29439]
[1735521490537,0.3417085,3403.7,3403.6,5.29439]
[1735521491537,0.3417085,3403.7,3403.6,0.29439]
[1735521491931,0.3417085,3403.7,3403.4,0.5477]
[1735521492129,0.6360985,3403.7,3403.3,6.32576796]
[1735521492329,0.3417085,3403.7,3403.3,6.03134796]
[1735521492539,0.3417085,3403.7,3403.6,0.29439]
[1735521492737,0.3417085,3403.7,3403.5,0.2944]
[1735521492939,0.3417085,3403.7,3403.3,6.03134796]
[1735521493341,0.3417085,3403.7,3403.3,3.2078]
[1735521493541,0.29439,3403.6,3403.3,3.2078]
[1735521493745,0.2944,3403.6,3403.3,3.2078]
[1735521494137,0.6360985,3403.7,3403.3,3.50222]
[1735521494534,0.6360985,3403.7,3403.3,3.2078]
[1735521494844,0.29439,3403.6,3403.3,3.2078]
[1735521495337,0.6360885,3403.7,3403.3,3.50221]
[1735521496039,0.3417085,3403.7,3403.4,0.29441]
[1735521496647,0.3417085,3403.7,3403.3,3.2078]
[1735521496849,0.2944,3403.5,3403.3,3.2078]
[1735521497047,0.29439,3403.6,3403.3,3.2078]
[1735521497241,0.3417085,3403.7,3403.3,3.2078]
[1735521497242,0.29441,3403.4,3403.3,3.2078]
[1735521499649,0.29441,3403.4,3402.3,1.252]
[1735521499650,0.29446,3402.8,3402.5,3.2078]
[1735521499863,3.42064796,3403.3,3402.5,3.2078]
[1735521500049,3.2078,3402.8,3402.2,0.29451]
[1735521500349,6.62844796,3403.3,3402.0,3.2078]
[1735521500552,0.2945,3402.4,3402.0,3.50232]
[1735521500747,0.2945,3402.4,3402.1,40.8]
[1735521500946,0.73609,3403.2,3402.1,40.8]
[1735521500947,3.2078,3403.2,3402.1,40.8]
[1735521501145,0.29448,3402.6,3402.4,3.2078]
[1735521501348,3.2078,3403.2,3402.4,3.2078]
[1735521501547,0.29449,3402.5,3402.4,3.2078]
[1735521502354,0.29451,3402.2,3402.1,40.8]
[1735521502654,0.29453,3402.0,3401.9,3.2078]
[1735521503352,0.5792,3402.6,3401.9,44.0078]
[1735521503550,0.29453,3402.0,3401.9,44.0078]
[1735521503954,0.5792,3402.6,3401.9,44.0078]
[1735521504146,0.29453,3402.1,3401.9,44.0078]
[1735521504352,0.5792,3402.6,3401.9,44.0078]
[1735521504553,0.29453,3402.0,3401.9,44.0078]
[1735521504757,0.73614,3402.9,3401.9,44.0078]
[1735521504758,0.29444,3403.0,3402.3,0.29449]
[1735521505064,3.787,3403.2,3402.8,3.2078]
[1735521505257,0.29449,3402.5,3402.4,3.2078]
[1735521506254,0.29449,3402.5,3401.9,40.8]
[1735521506457,1.1373,3402.4,3401.9,44.0078]
[1735521506959,1.1373,3402.4,3402.2,0.29451]
[1735521507159,3.55961796,3403.3,3402.3,3.5023]
[1735521507160,0.29448,3402.6,3402.3,3.5023]
[1735521507359,3.2078,3403.2,3402.3,3.5023]
[1735521507360,0.29449,3402.5,3402.3,3.5023]
[1735521507760,4.3301,3403.2,3402.3,3.2078]
[1735521507949,1.1223,3403.2,3402.9,3.2078]
[1735521508259,0.29444,3403.0,3402.9,3.2078]
[1735521508459,0.2944,3403.5,3403.1,0.29443]
[1735521508651,3.2078,3403.6,3403.2,40.8]
[1735521508850,0.29442,3403.3,3403.2,40.8]
[1735521510160,0.3417085,3403.7,3403.2,40.8]
[1735521510459,0.3417085,3403.7,3403.3,3.2078]
[1735521510660,0.29441,3403.4,3403.3,3.2078]
[1735521511470,3.2078,3403.6,3403.2,40.8]
[1735521511658,0.29442,3403.3,3403.2,40.8]
[1735521512259,0.3417085,3403.7,3403.2,41.09442]
[1735521512459,0.29441,3403.4,3403.2,40.8]
[1735521512653,0.29441,3403.4,3403.2,41.09442]
[1735521513256,0.29441,3403.4,3403.2,40.8]
[1735521513465,0.29442,3403.3,3403.2,40.8]
[1735521514164,0.29443,3403.2,3403.0,0.29444]
[1735521514458,0.29444,3403.0,3402.9,3.2078]
[1735521514763,0.29444,3403.0,3402.7,0.29446]
[1735521514969,3.94379,3403.6,3402.7,0.29446]
[1735521515166,0.29446,3402.8,3402.6,40.8]
[1735521515470,0.73605,3403.3,3402.5,3.2078]
[1735521515764,0.29448,3402.7,3402.5,44.0078]
[1735521515957,0.29448,3402.6,3402.5,44.0078]
[1735521516159,0.29447,3402.7,3402.5,44.0078]
[1735521516356,0.29446,3402.9,3402.7,0.29447]
[1735521516560,0.5476,3403.1,3402.8,0.29446]
[1735521516760,0.84204,3403.1,3402.6,0.29448]
[1735521517055,0.84204,3403.1,3402.8,0.29445]
[1735521517261,0.29444,3403.1,3402.9,3.50225]
[1735521517460,0.29442,3403.3,3403.0,0.29444]
[1735521517666,0.29442,3403.3,3402.9,3.2078]
[1735521517667,0.29442,3403.3,3403.1,0.29443]
[1735521518059,0.3417085,3403.7,3403.1,5.0]
[1735521518355,0.3417085,3403.7,3403.6,0.29439]
[1735521518968,0.3417085,3403.7,3403.6,41.09439]
[1735521519157,3.2078,3404.9,3403.6,48.62413346]
[1735521519354,0.29431,3404.6,3404.3,3.50213]
[1735521519563,3.7791,3404.9,3404.3,3.2078]
[1735521519762,0.29429,3404.8,3404.4,0.29431]
[1735521519959,0.29429,3404.8,3404.7,3.2078]
[1735521520558,0.29429,3404.8,3404.7,44.0078]
[1735521521760,0.29429,3404.8,3404.7,3.2078]
[1735521521959,0.29429,3404.8,3404.3,3.2078]
[1735521521960,0.29432,3404.4,3404.3,3.2078]
[1735521522155,3.2078,3404.8,3404.0,40.8]
[1735521522359,0.29434,3404.3,3404.0,41.09436]
[1735521522863,3.2078,3404.8,3403.9,4.4638]
[1735521522864,0.29436,3404.0,3403.9,4.4638]
[1735521523166,0.5976,3404.7,3403.9,3.2078]
[1735521523360,0.29434,3404.2,3403.9,3.50216]
[1735521523766,0.29434,3404.2,3403.9,3.2078]
[1735521523971,0.29433,3404.4,3404.0,0.29436]
[1735521524156,0.29433,3404.3,3404.0,0.29436]
[1735521524361,0.5927,3404.6,3403.9,3.2078]
[1735521524562,0.29434,3404.2,3403.9,3.50216]
[1735521524862,3.2078,3405.3,3404.0,3.56002346]
[1735521525064,0.29428,3404.9,3404.6,0.2943]
[1735521525361,0.29428,3404.9,3404.5,3.2078]
[1735521525362,0.29427,3405.1,3404.5,3.2078]
[1735521525565,1.1493,3405.2,3404.8,0.29429]
[1735521525864,0.29427,3405.0,3404.8,0.29429]
[1735521526067,0.29427,3405.0,3404.6,0.5546]
[1735521526563,0.29427,3405.1,3404.8,0.29428]
[1735521527260,1.44356,3405.2,3404.6,0.5546]
[1735521527460,1.1493,3405.2,3404.6,0.8489]
[1735521527660,0.29428,3404.9,3404.6,0.8489]
[1735521527857,0.29424,3405.4,3405.1,0.29425]
[1735521528062,4.5785511,3405.9,3405.4,0.29423]
[1735521528063,0.2942,3405.8,3405.4,0.29423]
[1735521528264,0.29424,3405.3,3405.2,3.2078]
[1735521528465,0.29423,3405.5,3405.2,3.50205]
[1735521529059,4.5785511,3405.9,3405.3,40.8]
[1735521529665,4.3281,3406.1,3405.3,40.8]
[1735521529863,0.73547,3406.0,3405.2,3.2078]
[1735521530063,0.29424,3405.3,3405.2,3.2078]
[1735521530460,0.73547,3406.0,3405.2,3.2078]
[1735521530667,5.06356,3406.1,3405.2,3.2078]
[1735521530866,0.29424,3405.3,3405.2,3.2078]
[1735521531264,5.06356,3406.1,3405.2,3.2078]
[1735521531465,4.3281,3406.1,3405.2,3.2078]
[1735521531865,0.2942,3405.8,3405.5,0.29422]
[1735521532065,4.3281,3406.1,3405.2,6.03193346]
[1735521532265,0.2942,3405.8,3405.5,0.29423]
[1735521532468,4.3281,3406.1,3405.6,0.29422]
[1735521532769,0.2942,3405.8,3405.3,2.35905293]
[1735521532963,0.2942,3405.9,3405.6,3.50201]
[1735521533368,4.3281,3406.1,3405.6,3.2078]
[1735521533569,0.29419,3406.0,3405.7,0.29421]
[1735521533871,4.62228,3406.1,3405.8,0.29419]
[1735521534071,4.62228,3406.1,3405.6,5.56685293]
[1735521534374,3.2078,3406.1,3405.6,5.56685293]
[1735521534572,3.50198,3406.1,3405.8,0.29419]
[1735521534763,3.2078,3406.1,3405.6,5.56685293]
[1735521534965,4.5785511,3406.4,3405.9,2.35905293]
[1735521535168,4.5785511,3406.4,3406.2,2.35905293]
[1735521535362,4.5785511,3406.4,3406.3,0.29416]
[1735521535563,4.5785511,3406.4,3406.2,2.35905293]
[1735521535564,4.5785511,3406.7,3406.6,0.29413]
[1735521535766,4.36064914,3406.7,3406.6,5.86098293]
[1735521535965,4.36064914,3406.7,3406.6,12.11698293]
[1735521536278,4.36064914,3406.7,3406.6,53.37541801]
[1735521536570,2.90234914,3406.7,3406.6,53.37541801]
[1735521536767,2.82964914,3406.7,3406.6,53.37541801]
[1735521536970,2.23685072,3406.7,3406.6,53.37541801]
[1735521537160,5.75899488,3407.0,3406.6,53.37541801]
[1735521537366,3.44311934,3407.6,3406.6,53.08128801]
[1735521537665,3.44311934,3407.6,3407.3,3.50186]
[1735521537866,3.44311934,3407.6,3407.3,3.2078]
[1735521538060,3.44311934,3407.6,3406.9,3.2078]
[1735521538671,0.29406,3407.5,3407.1,0.29409]
[1735521538868,3.7875,3407.9,3407.3,3.2078]
[1735521539467,0.29406,3407.4,3407.3,3.2078]
[1735521539665,3.7875,3407.9,3406.9,3.2078]
[1735521540069,0.29406,3407.4,3407.1,0.29409]